Cogmind - Beta 16.1 @@@ ROGUE MODE // 2026.02.21 @ 00:09:17 Player: APerTAS Result: Destroyed by X0-WK1(z) with Zionite Laser-S Performance ------------- Evolutions (1) 500 Regions Visited (5) 1000 Robots Destroyed (1) 5 Value Destroyed (247) 247 Prototype IDs (6) 120 Alien Tech Used (0) 0 Bonus (800) 800 TOTAL SCORE: 2672 Bonus ------- Pacifist 200 Met Imprinter 300 Was Imprinted 300 Cogmind --------- Core Integrity 0/400 Matter 300/300 Energy 98/100 System Corruption 2% Temperature Cool (9) Movement Core (50) Location -7/Deep Caves Parts ------- > --- POWER (3) -------- (None) > --- PROPULSION (2) --- (None) > --- UTILITY (2) ------ (None) > --- WEAPON (2) ------- CR-A16's Pointy Stick > --- INVENTORY (5) ---- Huge Storage Unit Peak State ------------ > --- POWER ------------ (None) > --- PROPULSION ------- (None) > --- UTILITY ---------- Experimental Core Analyzer > --- WEAPON ----------- (None) > --- INVENTORY -------- Huge Storage Unit [Rating: 10] Favorites ----------- Power None Propulsion None Utility Experimental Core Analyzer Processor Experimental Core Analyzer Hackware Experimental System Shield Weapon CR-A16's Pointy Stick Piercing Weapon CR-A16's Pointy Stick Build | -11 -10 -9 -9 -7 -7 ------- Run | Yrd Mat Mat Min Zio Dee Slots Evolved 2 | . . 2 . . . Power 2 | . . 2 . . . Propulsion . | . . . . . . Utility . | . . . . . . Weapon . | . . . . . . Parts Attached 6 | . . . . 6 . Power . | . . . . . . Engine . | . . . . . . Core . | . . . . . . Reactor . | . . . . . . Propulsion . | . . . . . . Treads . | . . . . . . Leg . | . . . . . . Wheel . | . . . . . . Hover . | . . . . . . Flight . | . . . . . . Utility 5 | . . . . 5 . Device . | . . . . . . Storage . | . . . . . . Processor 4 | . . . . 4 . Hackware 1 | . . . . 1 . Protection . | . . . . . . Artifact . | . . . . . . Weapon 1 | . . . . 1 . Energy Gun . | . . . . . . Energy Cannon . | . . . . . . Ballistic Gun . | . . . . . . Ballistic Cannon . | . . . . . . Launcher . | . . . . . . Special Weapon . | . . . . . . Impact Weapon . | . . . . . . Slashing Weapon . | . . . . . . Piercing Weapon 1 | . . . . 1 . Special Melee Weapon . | . . . . . . Unidentified Prototypes 6 | . . . . 6 . Parts Lost 1 | . . . . 1 . Power . | . . . . . . Propulsion . | . . . . . . Utility 1 | . . . . 1 . Weapon . | . . . . . . Highest Loss Streak 1 | . . . . 1 . To Critical Strikes . | . . . . . . Average Backups . | . . . 1 1 1 Power . | . . . . . . Propulsion . | . . . . . . Utility . | . . . 1 1 1 Weapon . | . . . . . . Tool/Special . | . . . . . . Unused Backups 1 | . . . . . 1 Power . | . . . . . . Propulsion . | . . . . . . Utility 1 | . . . . . 1 Weapon . | . . . . . . Tool/Special . | . . . . . . Average Slot Usage (%) 4 | . . . . 6 11 Piercing Weapon 4 | . . . . 5 11 Peak Build Rating 10 | . . . . 10 4 Average Rating 1 | . . . . 2 4 On Entrance . | . . . . . 4 Avg Prop Armor Cover (%) . | . . . . . . Naked Turns 439 | . 156 105 15 163 . Heaviest Build 3 | . . . . 3 3 Greatest Support 3 | 3 3 3 3 3 3 Greatest Overweight (x) . | . . . . . . Average Overweight (x) . | . . . . . . Largest Inventory Capacity 5 | 5 5 5 5 5 5 Average Capacity 5 | 5 5 5 5 5 5 Most Carried 1 | . . 1 1 1 1 Average Carried . | . . . 1 1 1 Final Capacity 5 | 5 5 5 5 5 5 Final Carried 1 | . . 1 1 1 1 Class Distribution -------------------- 100% | Mutant Dominant Class ---------------- Mutant | -10/Materials Mutant | -9/Materials Mutant | -9/Mines Mutant | -7/Zion Mutant | -7/Deep Caves Resources | -11 -10 -9 -9 -7 -7 ----------- Run | Yrd Mat Mat Min Zio Dee Matter Collected 270 | 182 . . . 45 43 Remotely . | . . . . . . Salvage Created 68 | . . 24 . . 44 Parts 13 | . . 3 . . 10 Haulers Intercepted . | . . . . . . Recyclers Shooed . | . . . . . . Parts Field Recycled . | . . . . . . Retrieved Matter . | . . . . . . Parts Self-Destructed . | . . . . . . Prevented . | . . . . . . Parts Restored . | . . . . . . Kills | -11 -10 -9 -9 -7 -7 ------- Run | Yrd Mat Mat Min Zio Dee Combat Hostiles Destroyed . | . . . . . . Classes Destroyed 2 | . . 1 . . 1 Tunneler 1 | . . 1 . . . Z-Technician 3 | . . . . . 3 Best Kill Streak 3 | . . 1 . . 3 Combat Bots Only . | . . . . . . Max Kills in Single Turn 1 | . . 1 . . 1 Gunslinging . | . . . . . . Exploded . | . . . . . . Melee . | . . . . . . Uniques/NPCs Destroyed . | . . . . . . Combat | -11 -10 -9 -9 -7 -7 -------- Run | Yrd Mat Mat Min Zio Dee Hostile Shots Fired 66 | . 23 41 . . 2 Missed 28 | . 13 14 . . 1 Hits 38 | . 10 27 . . 1 Projectile 38 | . 10 27 . . 1 Critical Strikes 2 | . . 2 . . . Damage Taken 546 | . 117 399 . . 30 Core 546 | . 117 399 . . 30 Absorbed by Shields . | . . . . . . Core Remaining (%) 76 | 100 53 . . . . Volleys Fired . | . . . . . . Largest . | . . . . . . Hottest . | . . . . . . Shots Fired . | . . . . . . Gun . | . . . . . . Cannon . | . . . . . . Launcher . | . . . . . . Special . | . . . . . . Kinetic . | . . . . . . Thermal . | . . . . . . Explosive . | . . . . . . Electromagnetic . | . . . . . . Robot Hit Streak . | . . . . . . Robot Miss Streak . | . . . . . . Penetration Max . | . . . . . . Secondary Targets . | . . . . . . Shots Hit Robots 3 | . . . . . 3 Core Hits 5 | . . 3 . . 2 Critical Kills . | . . . . . . Critical Parts Destroyed . | . . . . . . Critical Strikes . | . . . . . . Melee Attacks 3 | . . . . . 3 Impact . | . . . . . . Slashing . | . . . . . . Piercing 3 | . . . . . 3 Sneak Attacks 3 | . . . . . 3 Combat Hostiles . | . . . . . . Follow-up Attacks . | . . . . . . Damage Inflicted 301 | . 15 61 . . 225 Guns . | . . . . . . Cannons . | . . . . . . Explosions . | . . . . . . Melee 225 | . . . . . 225 Ramming 76 | . 15 61 . . . Kinetic . | . . . . . . Thermal . | . . . . . . Explosive . | . . . . . . Electromagnetic . | . . . . . . Impact . | . . . . . . Slashing . | . . . . . . Piercing 225 | . . . . . 225 Highest Corruption 3 | . . 3 3 3 2 Average Corruption 2 | . . 2 3 2 2 Corruption Purged . | . . . . . . Corruption Blocked . | . . . . . . Effects 3 | . . . . 2 1 Message Errors 1 | . . . . . 1 Matter Fused 2 | . . . . 2 . Overload Shots . | . . . . . . Overflow Damage 46 | . . . . . 46 Projectiles . | . . . . . . Explosions . | . . . . . . Melee 46 | . . . . . 46 Knockbacks . | . . . . . . Impact . | . . . . . . Kinetic . | . . . . . . Secondary . | . . . . . . Self-Inflicted Damage 33 | . 7 26 . . . Shots . | . . . . . . Rammed 22 | . 2 20 . . . Targets Rammed 22 | . 2 20 . . . Kicked . | . . . . . . Crushed . | . . . . . . Highest Temperature 389 | . . 5 . 389 . Average Temperature 193 | . . 5 . 207 . Received Heat Transfer 240 | . 63 168 . . 9 Siege Activations . | . . . . . . Martial Activations . | . . . . . . Shielding Activations . | . . . . . . Robots Disrupted . | . . . . . . Combat Hostiles . | . . . . . . Robots Corrupted . | . . . . . . Combat Hostiles . | . . . . . . Parts Fried . | . . . . . . Impact Corruptions . | . . . . . . Robots Melted . | . . . . . . Combat Hostiles . | . . . . . . Parts Melted . | . . . . . . Heat Transferred . | . . . . . . Parts Sabotaged . | . . . . . . Parts Stolen . | . . . . . . Parts Stripped . | . . . . . . Power Chain Reactions . | . . . . . . Alert | -11 -10 -9 -9 -7 -7 ------- Run | Yrd Mat Mat Min Zio Dee Maximum Alert Level . | . . . . . . Low Security (%) 100 | 100 100 100 100 . . Level 1 . | . . . . . . Level 2 . | . . . . . . Level 3 . | . . . . . . Level 4 . | . . . . . . Level 5 . | . . . . . . High Security . | . . . . . . Max Security . | . . . . . . Peak Influence 173 | . 150 173 67 . . Initial 67 | . . 63 67 . . Average 84 | . 74 109 67 . . Influence Increases 370 | . 210 160 . . . Destroy 0b10 Robot/NC 5 | . . 5 . . . Select Force Hacks 290 | . 150 140 . . . Lose Combat Pursuer 75 | . 60 15 . . . Influence Decreases 370 | . 60 137 106 67 . Entered New Map 260 | . . 87 106 67 . Time Decay 110 | . 60 50 . . . Squads Dispatched 10 | . 6 4 . . . Investigation 9 | . 5 4 . . . Extermination . | . . . . . . Reinforcement 1 | . 1 . . . . Assault . | . . . . . . Garrison . | . . . . . . Intercept . | . . . . . . Searches Triggered . | . . . . . . Construction Impeded . | . . . . . . Haulers Reinforced . | . . . . . . Active Scanning Responses . | . . . . . . Cargo Convoy Interrupts . | . . . . . . Stealth | -11 -10 -9 -9 -7 -7 --------- Run | Yrd Mat Mat Min Zio Dee Distress Signals 4 | . 1 3 . . . Communications Jammed . | . . . . . . Distress Signals . | . . . . . . Times Spotted 35 | . 19 10 . . 6 Peak Tracking Total 10 | . 10 10 . . 4 Tactical Retreats 4 | . 3 1 . . . Traps | -11 -10 -9 -9 -7 -7 ------- Run | Yrd Mat Mat Min Zio Dee Traps Triggered . | . . . . . . Indirectly . | . . . . . . Trap Hack Attempts . | . . . . . . Triggered . | . . . . . . Disarmed . | . . . . . . Reprogrammed . | . . . . . . Reused . | . . . . . . Traps Extracted . | . . . . . . Installed . | . . . . . . Triggered . | . . . . . . Machines | -11 -10 -9 -9 -7 -7 ---------- Run | Yrd Mat Mat Min Zio Dee Machines Disabled . | . . . . . . Max in Single Turn . | . . . . . . Machines Repaired . | . . . . . . Machines Dismantled . | . . . . . . Machines Sabotaged 4 | . 3 1 . . . Overloaded Fab Kills . | . . . . . . Hacking | -11 -10 -9 -9 -7 -7 --------- Run | Yrd Mat Mat Min Zio Dee Machines Accessed 9 | . 5 4 . . . Terminals 5 | . 4 1 . . . Fabricators . | . . . . . . Repair Stations 1 | . 1 . . . . Recycling Units 1 | . . 1 . . . Scanalyzers 2 | . . 2 . . . Garrison Access . | . . . . . . Total Hacks 10 | . 5 5 . . . Successful 10 | . 5 5 . . . Failed . | . . . . . . Catastrophic . | . . . . . . Database Lockouts . | . . . . . . Manual 15 | . 5 6 . 4 . Terminals 5 | . 4 1 . . . Fabricators . | . . . . . . Repair Stations 1 | . 1 . . . . Recycling Units 2 | . . 2 . . . Scanalyzers 2 | . . 2 . . . Garrison Access . | . . . . . . Terminal Hacks . | . . . . . . Fabricator Hacks . | . . . . . . Repair Station Hacks . | . . . . . . Recycling Unit Hacks . | . . . . . . Scanalyzer . | . . . . . . Garrison Access Hacks . | . . . . . . Unauthorized Hacks 9 | . 5 4 . . . Terminals 5 | . 4 1 . . . Sabotage 5 | . 4 1 . . . Fabricators . | . . . . . . Repair Stations 1 | . 1 . . . . Patch 1 | . 1 . . . . Recycling Units 1 | . . 1 . . . Tunnel 1 | . . 1 . . . Scanalyzers 2 | . . 2 . . . Extract 2 | . . 2 . . . Garrison Access . | . . . . . . Data Cores Recovered . | . . . . . . Used . | . . . . . . Hacking Detections . | . . . . . . Full Trace Events . | . . . . . . Feedback Events . | . . . . . . Feedback Blocked . | . . . . . . Robot Schematics Acquired . | . . . . . . Robots Built . | . . . . . . Authchips . | . . . . . . Time . | . . . . . . Total Robot Build Rating . | . . . . . . Part Schematics Acquired 11 | . . 11 . . . Parts Built . | . . . . . . Authchips . | . . . . . . Time . | . . . . . . Total Part Build Rating . | . . . . . . Part Studies Acquired . | . . . . . . Parts Repaired . | . . . . . . Time . | . . . . . . Parts Recycled . | . . . . . . Recycled Matter . | . . . . . . Retrieved Matter . | . . . . . . Retrieved Components . | . . . . . . Parts Scanalyzed . | . . . . . . Part Schematics Acquired . | . . . . . . Parts Damaged . | . . . . . . Bothacking | -11 -10 -9 -9 -7 -7 ------------ Run | Yrd Mat Mat Min Zio Dee Used RIF Installer . | . . . . . . Robots Hacked . | . . . . . . Non-combat . | . . . . . . Combat . | . . . . . . Robot Hacks Applied . | . . . . . . Relay Couplers Released . | . . . . . . Fabnet Peak Effective % . | . . . . . . Robots Rewired . | . . . . . . Allies Hacked . | . . . . . . Hacks Repelled . | . . . . . . Allies | -11 -10 -9 -9 -7 -7 -------- Run | Yrd Mat Mat Min Zio Dee Total Allies 9 | . . . . 9 . Largest Group 9 | . . . . 9 8 Highest-Rated Group 321 | . . . . 321 280 Highest-Rated Ally 51 | . . . . 51 51 Total Orders . | . . . . . . Ally Attacks 29 | . . . . . 29 Total Damage 368 | . . . . . 368 Kills 5 | . . . . . 5 Allies Corrupted . | . . . . . . Allies Melted 2 | . . . . . 2 Intel | -11 -10 -9 -9 -7 -7 ------- Run | Yrd Mat Mat Min Zio Dee Active Infowar (turns) 1 | . . . . 1 . Optics 1 | . . . . 1 . Robot Analysis Total . | . . . . . . Derelict Logs Recovered 2 | . . . 1 1 . Drone Launches . | . . . . . . Drone Recoveries . | . . . . . . Exploration | -11 -10 -9 -9 -7 -7 ------------- Run | Yrd Mat Mat Min Zio Dee Turns Passed 792 | 9 156 105 15 352 155 Spaces Moved 1293 | 18 309 168 30 522 246 Core 1293 | 18 309 168 30 522 246 Treads . | . . . . . . Legs . | . . . . . . Wheels . | . . . . . . Hover . | . . . . . . Flight . | . . . . . . Fastest Speed 50 | 50 50 50 50 50 50 Average Speed 50 | 50 50 50 50 50 50 Slowest Speed 50 | 50 50 50 50 50 50 Overloaded Moves . | . . . . . . Propulsion Burnouts . | . . . . . . Robots Hopped . | . . . . . . Potential Cave-ins . | . . . . . . Cave-ins Triggered . | . . . . . . Exploration Rate (%) 36 | 3 65 28 7 78 38 Regions Visited 5 Branch Regions 3 Pre-discovered Areas 3 | . . 1 . 2 . Known Exits Taken . | . . . . . . Unknown Exits Taken 5 | 1 1 1 1 1 . Scrap Searched 3 | . . . 1 2 . Spaces Dug . | . . . . . . Terrain Destroyed . | . . . . . . Melee . | . . . . . . Projectile . | . . . . . . AOE . | . . . . . . Terrain Rammed . | . . . . . . Walls Destroyed . | . . . . . . Machines Disabled . | . . . . . . Actions | -11 -10 -9 -9 -7 -7 --------- Run | Yrd Mat Mat Min Zio Dee Total 1427 | 17 310 188 29 611 272 Wait 101 | . . . . 78 23 Move 1289 | 17 309 167 29 521 246 Hop . | . . . . . . Pick Up 1 | . . 1 . . . Fast Attach 7 | . . . . 7 . Attach . | . . . . . . Detach . | . . . . . . Swap . | . . . . . . Drop 5 | . . . . 5 . Fire . | . . . . . . Melee 3 | . . . . . 3 Ram 21 | . 1 20 . . . Kick . | . . . . . . Crush . | . . . . . . Escape Stasis . | . . . . . . Rewire . | . . . . . . Trap . | . . . . . . Miscellaneous . | . . . . . . Route ------- -11/Scrapyard -10/Materials (discovered 2 exits: *Mat / [*Min]) -9/Materials -9/Mines -7/Zion -7/Deep Caves History --------- Turn | Location | Event 3 | -11/Scrapyard | Discovered new exit (range 15) 10 | -11/Scrapyard | Entered Materials 47 | -10/Materials | Discovered new exit (range 11) 164 | -10/Materials | Discovered new exit (range 5) 166 | -10/Materials | Entered another Materials area 166 | -9/Materials | Evolved 2 slots: Power x2 252 | -9/Materials | Core integrity fell below 50% 265 | -9/Materials | Core integrity fell below 20% 267 | -9/Materials | Discovered new exit (range 9) 271 | -9/Materials | Entered Mines 274 | -9/Mines | Received a Mining Laser from a helpful Derelict 280 | -9/Mines | Learned 2 Materials zone layouts 283 | -9/Mines | A Derelict revealed a hidden shortcut to a safe place 286 | -9/Mines | Entered Zion 301 | -7/Zion | System corruption cleaned by Quarantine Array 305 | -7/Zion | Build established: Mutant 316 | -7/Zion | Learned location of Recycling (-7) 343 | -7/Zion | Acquired unknown access codes intercepted by a Zionite 399 | -7/Zion | Gained Derelict followers 416 | -7/Zion | Found Prototype Hackware 416 | -7/Zion | Identified Exp. System Shield 419 | -7/Zion | Found Prototype Processor 419 | -7/Zion | Identified Spectral Analyzer 421 | -7/Zion | Found Prototype Processor 421 | -7/Zion | Identified Exp. Targeting Computer 423 | -7/Zion | Found Prototype Processor 423 | -7/Zion | Identified Exp. Target Analyzer 428 | -7/Zion | Found Prototype Processor 428 | -7/Zion | Identified Exp. Core Analyzer 455 | -7/Zion | Found CR-A16's Pointy Stick 507 | -7/Zion | Met Imprinter 515 | -7/Zion | Imprinted 517 | -7/Zion | Declared Zion's savior 553 | -7/Zion | Opened final containment barrier to the Deep Caves 561 | -7/Zion | Discovered new exit (range 5) 562 | -7/Zion | Saw the warning signs outside the Deep Caves entrance 638 | -7/Zion | Entered Deep Caves 638 | -7/Deep Caves | Accompanied by 9 allies 788 | -7/Deep Caves | Z-Facility disabled 793 | -7/Deep Caves | Destroyed by X0-WK1(z) with Zionite Laser-S Last Messages --------------- 00651_ as-71205 sneak attacks. 00652_ M0-FIY(p) destroyed. 00653_ as-71205 destroyed. 00658_ as-84337 suffers critical hit (Burn). 00659_ as-84337 heat spikes uncontrollably. 00661_ as-84337 destroyed. 00666_ P6-EYG(l) suffers critical hit (Burn). 00668_ as-05395 destroyed. 00674_ Acquired 43 matter. 00709_ VH=OTU&QQDEOJKZW3AW9D 00761_ NEW_ZION: Z-Facility proximity alert. 00765_ Sneak attack on RQ-O45(o). 00765_ RQ-O45(o) destroyed. 00773_ Sneak attack on U3-Y2X(o). 00773_ U3-Y2X(o) destroyed. 00778_ Sneak attack on JQ-D3Y(o). 00778_ Destroyed Hover Unit. 00778_ JQ-D3Y(o) destroyed. 00780_ 5N-KZO(o) shuts down. 00782_ JN-75W(o) destroyed. Map ----- +----------------------------------------------------+ | | | | | | | | | | | | | | | | | | | | | | | | | | | | | | | ?????????????????????????????????????????????????? | | ????????????????????????????###############??????? | | ?????????????????????????#### ##?????? | | ????????????????????#???## #?????? | | ????????????##??????# ?## ###?##? | | ????????????# z # ??# ## ## # | | ??????????? z z ## | | ??????????? | | ?????????? | | ?????????? | | ?????????? @ | | ?????????? """"" """""" | | ?????????? """""""""""""" | | ??????????? """""""""""""" | | ??????????? """""""""""""" | | ???????????? """"""""""" | | ???????????? """""""""""""" | | ???????????? ?????""""""""" | | ????????????? ?????""""""""" | | ????????????? ?????""""""""" | | ?????????????? ??????"""" "*" | | ?????????????? ??????""""""%! | | ???????????????? ? ??????""""" *= | | ?????????????????? ??????????""""""%/ | | ??????????????????????????????""""" | | ??????????????????????????????""""""" ! | | ?????????????????????????????""""""""""%* | | ?????????????????????????????""" =/ | | ?????????????????????????????""" """ | | ??????????????????????????????"" """"" | | ??????????????????????????????"" """"""" | | ??????????????????????????????"" """"""" | | ??????????????????????????????"" """"""" | | ??????????????????????????????"" """"" | | ?????????????????????????????""" """ | +----------------------------------------------------+ Best States ------------- Heat Dissipation 28 Energy Generation 5 Energy Capacity 100 Matter Stores 300 Matter Capacity 300 Sight Range 16 Terrain Scan Density 10 Evasion (%) 50 Item Schematics ----------------- Imp. Ion Engine | -9/Materials | Extracted Lgt. Armor Plating | -9/Materials | Extracted Flight Unit | -9/Materials | Extracted Arm. Wheel | -9/Materials | Extracted Sml. Matter Pod | -9/Materials | Extracted EM Shotgun | -9/Materials | Extracted Lrg. Matter Pod | -9/Materials | Extracted Datajack | -9/Materials | Extracted Imp. Aluminum Leg | -9/Materials | Extracted Targeting Computer | -9/Materials | Extracted Lrg. Storage Unit | -9/Materials | Extracted Robot Schematics ------------------ None Fabricated ------------ Nothing Repaired ---------- Nothing Studied --------- None Alien Tech Used ----------------- None Achievements -------------- Fishing Tech Challenges ------------ None Game ------ Seed ScrapoidAbsorptionSplitter Manual? 0 Play Time 00:13:01 Cumulative 57.8 hours Start 2026.02.20 @ 23:58:10 End 2026.02.21 @ 00:09:17 Sessions 1 Manual Loads 0 Difficulty Rogue Special Mode None Game No. 181 Rogue 181 Adventurer 0 Explorer 0 Win Type - Total 0 Types 0/0/0/0/0/0/0/0/0/0 Lore% 62 Gallery% 36 Achievement% 33 Wizard Run 0 Options --------- Layout 0 ASCII 0 Keyboard 0 Movement Arrows Keybinds 0 Fullscreen 1 Font 24/Terminus Map View 64x52 Zoom Use 0% Tactical HUD 1 Map Filters NONE Filters NONE Steam 1 RUN: 787146e2-6157-411f-822d-b416636b9e00